[Event "ESCC-65 2022"]
[Site "Lublin"]
[Date "2022.07.06"]
[Round "2.11"]
[White "Sosnowska, Elzbieta"]
[Black "Stokes, Michael"]
[Result "0-1"]
[ECO "C25"]
[WhiteElo "1726"]
[BlackElo "2024"]
[Annotator "TA"]
[PlyCount "123"]
[EventDate "2022.07.05"]
[EventType "swiss"]
[EventCountry "POL"]
[SourceTitle "playchess.com"]
[Source "ChessBase"]
[SourceQuality "1"]
[TimeControl "40/5400+30:1800+30"]

{[%evp 9,123,-90,-94,-104,-91,-111,-111,-192,-108,-130,-111,-110,-122,-106,-102,-109,-112,-112,-113,-112,-114,-158,-119,-157,-157,-175,-154,-192,-192,-192,-189,-175,-125,-124,-121,-120,-67,-95,-40,-44,-37,-40,-53,-55,-33,-75,-83,-157,-136,-158,-161,-215,-236,-220,-206,-264,-249,-220,-206,-278,-276,-265,-265,-273,-258,-264,-258,-267,-252,-254,-249,-264,-249,-258,-249,-313,-295,-331,-315,-302,-242,-350,-347,-468,-450,-484,-490,-637,-638,-1032,-1032,-956,-936,-751,-725,-1001,-986,-952,-914,-1057,-966,-6065,-2278,-7054,-6636,-12839,-12839,-12839,-12840,-12840,-1165,-788,-748,-12850,-12850,-12850]} 1. e4 {[%emt 0:00:04]} e5 {[%emt 0:00:04]} 2. Nc3 {[%emt 0:00:13]} Bc5 {[%emt 0:00:07]} 3. f4 {[%emt 0:00:29]} d6 {[%emt 0:00:08]} 4. Nf3 {[%emt 0:00:10]} Nf6 {[%emt 0:00:13]} 5. d4 {[%emt 0:12:12]} exd4 {[%emt 0:00:25]} 6. Nxd4 {[%emt 0:02:34] C30: King's Gambit Declined.} O-O {[%emt 0:02:58][%cal Bh8f8,Bf8e8,Be8e4][%mdl 32]} 7. Be2 {[%emt 0:05:21]} Re8 {[%emt 0:01:38]} 8. Nb3 {[%emt 0:15:29] [#]} (8. Bf3 $17) 8... Bb4 $146 {[%emt 0:07:32]} (8... Bb6 $1 $19 9. Nd2 Nc6) ({Predecessor:} 8... Bb6 9. e5 dxe5 10. fxe5 Qxd1+ 11. Nxd1 Rxe5 12. Nc3 Bg4 13. Bf4 Re6 14. Kd2 Bxe2 15. Nxe2 {0-1 (20) Toelg,W (1782)-Handel,O (1705) Ditzingen 2013}) 9. Nd2 {[%emt 0:21:09]} Bxc3 {[%emt 0:02:43]} 10. bxc3 {[%emt 0:00:04]} Nxe4 {[%emt 0:00:14]} 11. Nxe4 {[%emt 0:00:08]} Rxe4 {[%emt 0:00:07]} 12. O-O {[%emt 0:00:10]} Nd7 {[%emt 0:04:07]} 13. Bd3 {[%emt 0:01:47]} Re8 {[%emt 0:00:16]} 14. Qf3 {[%emt 0:02:22]} Nc5 {[%emt 0:02:57]} 15. Bd2 {[%emt 0:03:13]} Bd7 {[%emt 0:05:28]} 16. Rab1 {[%emt 0:05:07]} Qh4 {[%emt 0:03:39]} 17. Be1 {[%emt 0:00:55]} Qg4 {[%emt 0:03:55]} 18. f5 {[%emt 0:05:40]} Qxf3 {[%emt 0:00:31]} 19. Rxf3 {[%emt 0:00:04]} Bc6 {[%emt 0:01:01]} 20. Rg3 {[%emt 0:01:24]} Be4 {[%emt 0:06:59]} (20... Ne4 $19 21. Re3 b6) 21. Bf2 $17 {[%emt 0:01:41]} b6 {[%emt 0:05:47]} 22. Bd4 {[%emt 0:00:30]} g6 {[%emt 0:00:56]} (22... Nxd3 $17 23. cxd3 Bxf5 24. Rxg7+ Kf8) 23. Rf1 $15 {[%emt 0:03:36] [#]} Nd7 {[%emt 0:03:55]} (23... Bxd3 $1 $17 24. cxd3 Re2) 24. fxg6 {[%emt 0:00:28]} fxg6 {[%emt 0:00:51]} 25. Bc4+ {[%emt 0:01:45]} d5 {[%emt 0:00:13]} 26. Bb5 {[%emt 0:00:01]} Re7 $36 {[%emt 0:02:36][%mdl 2048] White is under pressure.} 27. Bc6 {[%emt 0:00:55]} Rf8 {[%emt 0:03:38] Strongly threatening ...Rxf1+. Black keeps a firm grip on the game.} 28. Rg5 {[%emt 0:01:52]} (28. Re3 $142 Rxf1+ 29. Kxf1 Rf7+ 30. Ke2) 28... Rxf1+ $17 {[%emt 0:01:30]} 29. Kxf1 {[%emt 0:00:03]} h6 {[%emt 0:01:48]} (29... Bxc2 30. Rxd5 Bf5 31. a3 $17) 30. Rg4 {[%emt 0:01:14]} (30. Rg3 $142) 30... Ne5 $19 {[%emt 0:03:32]} 31. Bxe5 {[%emt 0:00:49]} Rxe5 {[%emt 0:00:06][%mdl 4096] Endgame KRB-KRB} 32. c4 {[%emt 0:00:40]} Bf5 {[%emt 0:00:20]} ({Worse is} 32... Bxc2 33. Bxd5+ Kg7 34. Rf4 $17) 33. Rd4 {[%emt 0:00:52]} dxc4 {[%emt 0:02:11]} ({Stronger than} 33... Bxc2 34. Bxd5+ Kg7 35. Kf2 $17) 34. Bd5+ {[%emt 0:01:57]} Kf8 {[%emt 0:03:03]} 35. Bxc4 {[%emt 0:00:02]} Bxc2 {[%emt 0:00:28]} 36. Rd7 {[%emt 0:01:54]} Re7 {[%emt 0:02:38]} 37. Rd8+ {[%emt 0:00:21]} Kg7 {[%emt 0:00:07]} 38. Rg8+ {[%emt 0:01:16]} Kh7 {[%emt 0:00:59]} 39. Rd8 {[%emt 0:00:29]} Bf5 {[%emt 0:00:55]} 40. h3 {[%emt 0:00:00]} c6 {[%emt 0:00:00]} 41. g4 {[%emt 0:04:16]} Be4 {[%emt 0:03:28]} 42. Bg8+ {[%emt 0:00:44]} Kg7 {[%emt 0:00:13]} 43. Bb3 {[%emt 0:00:13]} Kf6 {[%emt 0:03:16]} 44. Kf2 {[%emt 0:00:48]} h5 {[%emt 0:03:41]} 45. Kg3 {[%emt 0:02:47]} (45. gxh5 {keeps fighting.} gxh5 46. Rh8) 45... hxg4 {[%emt 0:00:39]} 46. Rf8+ {[%emt 0:01:10]} Ke5 {[%emt 0:00:51] Black is clearly winning.} 47. hxg4 {[%emt 0:00:12]} b5 {[%emt 0:01:02]} 48. Kh4 {[%emt 0:01:04]} c5 {[%emt 0:00:29][%cal Bc6c5,Bc5c4,Bc4c3][%mdl 32]} 49. Bf7 {[%emt 0:04:04]} c4 {[%emt 0:04:11]} 50. Kg5 {[%emt 0:00:25]} c3 {[%emt 0:00:46] aiming for ...c2.} 51. Bb3 {[%emt 0:01:36]} Kd4 {[%emt 0:02:49]} ({And not} 51... c2 52. Rc8 $17) 52. Kf4 {[%emt 0:03:13]} a5 {[%emt 0:08:07][%cal Ba7a5,Ba5a4][%mdl 32]} 53. Rd8+ {[%emt 0:03:08]} Kc5 {[%emt 0:00:17]} 54. a3 {[%emt 0:00:25]} a4 {[%emt 0:00:46]} 55. Rc8+ {[%emt 0:00:27]} Bc6 {[%emt 0:00:31]} 56. Bc2 {[%emt 0:00:29]} Re2 {[%emt 0:01:30]} 57. Bxg6 {[%emt 0:01:03]} c2 {[%emt 0:00:17]} 58. Bxc2 {[%emt 0:00:49]} Rxc2 {[%emt 0:00:06]} 59. g5 {[%emt 0:00:16]} Kd6 {[%emt 0:03:41]} 60. g6 {[%emt 0:00:12]} Rg2 {[%emt 0:00:26]} 61. Rxc6+ {[%emt 0:01:49]} Kxc6 {[%emt 0:00:16]} 62. Kf5 {[%emt 0:00:17] Weighted Error Value: White=0.42/Black=0.11 (very precise)} 0-1

[Event "ESCC-65 2022"]
[Site "Lublin"]
[Date "2022.07.06"]
[Round "2.12"]
[White "Kasprzyk, Irena"]
[Black "Patola, Eero"]
[Result "1/2-1/2"]
[ECO "B01"]
[WhiteElo "2017"]
[BlackElo "1810"]
[Annotator "TA"]
[PlyCount "48"]
[EventDate "2022.07.05"]
[EventType "swiss"]
[EventCountry "POL"]
[SourceTitle "playchess.com"]
[Source "ChessBase"]
[SourceQuality "1"]
[TimeControl "40/5400+30:1800+30"]

{[%evp 12,48,18,26,31,21,67,36,29,22,26,37,38,25,54,58,58,27,49,36,48,9,16,5,14,14,17,0,16,0,3,0,0,-17,-14,-4,-4,-14,0]} 1. e4 {[%emt 0:05:13]} d5 {[%emt 0:00:42]} 2. exd5 {[%emt 0:00:30]} Nf6 {[%emt 0:00:08]} 3. d4 {[%emt 0:00:25]} Nxd5 {[%emt 0:00:11]} 4. Nf3 {[%emt 0:01:08]} g6 {[%emt 0:00:40]} 5. c3 {[%emt 0:01:36]} Bg7 {[%emt 0:00:14]} 6. Bd3 {[%emt 0:00:30]} O-O {[%emt 0:00:45]} 7. O-O {[%emt 0:00:17]} c6 {[%emt 0:01:05] B01: Scandinavian Defence.} 8. Re1 {[%emt 0:00:34] [#]} h6 $146 {[%emt 0:06:46]} (8... Bg4 $11 {is more appropriate.}) ({Predecessor:} 8... Bg4 9. h3 Be6 10. Nbd2 h6 11. Ne5 Nd7 12. Nxg6 fxg6 13. Rxe6 Nf4 14. Re3 e5 15. Nf3 exd4 16. cxd4 Nxd3 17. Qxd3 {½-½ (36) Meszaros,N (2111)-Bona,J (1917) Slovakia 2019}) 9. Na3 {[%emt 0:03:13][%cal Bb1a3,Ba3c4,Bc4d6,Bd6e4,Be4c5][%mdl 32]} Bg4 {[%emt 0:02:51] White is slightly better.} 10. h3 {[%emt 0:00:25]} Bxf3 {[%emt 0:00:28]} 11. Qxf3 {[%emt 0:00:18]} e6 {[%emt 0:00:21]} 12. Nc4 {[%emt 0:02:25]} Qf6 {[%emt 0:10:05]} 13. Qg3 {[%emt 0:02:41]} Nd7 {[%emt 0:06:00][%cal Bb8d7,Bd7b6,Bb6d5][%mdl 32]} 14. Nd6 {[%emt 0:02:55]} b5 {[%emt 0:01:30]} 15. Ne4 {[%emt 0:01:20]} Qd8 {[%emt 0:01:43]} 16. Bf4 {[%emt 0:03:09]} (16. a4 $5 {[%cal Ra4b5]}) 16... Nxf4 {[%emt 0:01:01] The position is equal.} 17. Qxf4 {[%emt 0:00:14]} Nb6 {[%emt 0:05:37][%cal Oe6e5]} 18. Rad1 {[%emt 0:01:32]} Nd5 {[%emt 0:03:35]} 19. Qg3 {[%emt 0:01:32]} a5 {[%emt 0:02:17]} 20. Nc5 {[%emt 0:00:41]} Qc7 {[%emt 0:07:24] Hoping for ...Qxg3.} 21. Qxc7 {[%emt 0:02:06]} Nxc7 {[%emt 0:00:13]} 22. Nd7 {[%emt 0:00:39]} Rfd8 {[%emt 0:02:29]} 23. Ne5 {[%emt 0:00:15]} Bxe5 {[%emt 0:01:44]} 24. Rxe5 {[%emt 0:01:41]} Rd5 {[%emt 0:02:07] Weighted Error Value: White=0.12 (very precise) /Black=0.09 (flawless)} 1/2-1/2

[Event "ESCC-65 2022"]
[Site "Lublin"]
[Date "2022.07.06"]
[Round "2.13"]
[White "Gasik, Piotr"]
[Black "Krupa, Jerzy"]
[Result "1/2-1/2"]
[ECO "A34"]
[WhiteElo "1990"]
[BlackElo "1771"]
[Annotator "TA"]
[PlyCount "112"]
[EventDate "2022.07.05"]
[EventType "swiss"]
[EventCountry "POL"]
[SourceTitle "playchess.com"]
[Source "ChessBase"]
[SourceQuality "1"]
[TimeControl "40/5400+30:1800+30"]

{[%evp 23,112,23,16,0,5,8,29,-9,54,-6,46,0,56,23,46,35,38,30,22,30,41,33,31,20,18,18,20,20,15,19,24,22,31,23,28,28,30,22,28,28,35,25,25,25,25,25,33,25,30,25,25,25,25,0,26,0,0,0,0,-10,0,-8,-11,-56,-39,-35,-27,-28,-10,-29,-19,-22,0,-54,-54,-80,0,0,0,0,0,0,0,0,0,0,0,0,0,0,0]} 1. c4 {[%emt 0:00:04]} c5 {[%emt 0:00:11]} 2. Nc3 {[%emt 0:00:09]} g6 {[%emt 0:00:16]} 3. Nf3 {[%emt 0:00:15]} Bg7 {[%emt 0:00:08]} 4. d4 {[%emt 0:02:09]} cxd4 {[%emt 0:00:18]} 5. Nxd4 {[%emt 0:00:10]} Nc6 {[%emt 0:00:07]} 6. e3 {[%emt 0:00:06]} Nf6 {[%emt 0:00:42]} 7. Be2 {[%emt 0:00:08]} d6 {[%emt 0:00:19]} 8. O-O {[%emt 0:00:57]} O-O {[%emt 0:00:12]} 9. b3 {[%emt 0:02:54]} Bd7 {[%emt 0:02:34]} 10. Nc2 {[%emt 0:02:37]} Bf5 {[%emt 0:02:44]} 11. Nd4 {[%emt 0:05:41]} Bd7 {[%emt 0:00:34]} 12. Bb2 {[%emt 0:01:33]} a6 {[%emt 0:06:10]} 13. Rc1 {[%emt 0:00:28] A35: Symmetrical English: 2 Nc3 Nc6 3 Nf3.} Rc8 {[%emt 0:06:16]} 14. Qd2 {[%emt 0:00:24]} Qa5 {[%emt 0:02:13]} 15. Rfd1 {[%emt 0:00:42] [#] White has an edge.} Kh8 $146 {[%emt 0:14:52]} ({Better is} 15... Nxd4 $11 16. Qxd4 Bc6) ({Predecessor:} 15... Ne5 16. h3 Rfe8 17. a3 Qc5 18. b4 Qa7 19. Nd5 Nxd5 20. cxd5 b5 21. Rxc8 Rxc8 22. Rc1 Nc4 23. Bxc4 bxc4 {½-½ (103) Pozo,S (2190)-Gordievsky,D (2562) Chess.com INT 2017}) 16. Kh1 {[%emt 0:04:35]} (16. Nf3 $14) 16... Ng4 {[%emt 0:07:07]} (16... Nxd4 $11 17. exd4 b5) 17. Kg1 {[%emt 0:01:59]} Nf6 {[%emt 0:04:06] Prevents Nd5.} 18. Bf3 {[%emt 0:07:29]} Bg4 {[%emt 0:08:59]} 19. Bxg4 {[%emt 0:14:12]} Nxg4 {[%emt 0:00:03]} 20. Nd5 {[%emt 0:00:32]} Qxd2 {[%emt 0:00:59]} 21. Rxd2 {[%emt 0:00:23]} Rfe8 {[%emt 0:01:45]} 22. Nb6 {[%emt 0:04:54]} Rcd8 {[%emt 0:02:40]} 23. Rcd1 {[%emt 0:01:00][%cal Oc4c5]} Nf6 {[%emt 0:02:08]} 24. f3 {[%emt 0:03:10]} Nd7 {[%emt 0:02:25]} 25. Nd5 {[%emt 0:02:11]} Rc8 {[%emt 0:02:20]} 26. Ne2 {[%emt 0:02:42]} Bxb2 {[%emt 0:00:38]} 27. Rxb2 {[%emt 0:00:05]} Kg7 {[%emt 0:00:29]} 28. Kf2 {[%emt 0:01:36]} Nf6 {[%emt 0:01:05]} 29. Nb6 {[%emt 0:02:02]} Rc7 {[%emt 0:02:55]} 30. g4 {[%emt 0:03:19]} h6 {[%emt 0:00:33]} 31. h4 {[%emt 0:00:09]} Ne5 {[%emt 0:05:18]} 32. Nd4 {[%emt 0:03:39]} Ned7 {[%emt 0:01:51]} 33. Nxd7 {[%emt 0:00:59]} Nxd7 {[%emt 0:00:22]} 34. e4 {[%emt 0:01:50]} Ne5 {[%emt 0:01:01]} 35. Kg3 {[%emt 0:01:39]} Nc6 {[%emt 0:00:40]} 36. Ne2 {[%emt 0:01:07]} g5 {[%emt 0:02:45]} 37. Nc3 {[%emt 0:02:23]} Ne5 {[%emt 0:01:09]} 38. h5 {[%emt 0:01:49]} Rc5 {[%emt 0:00:50]} (38... b5 $5) 39. Nd5 {[%emt 0:01:30]} b5 {[%emt 0:00:28]} 40. cxb5 {[%emt 0:00:00]} axb5 {[%emt 0:00:00]} 41. Kf2 {[%emt 0:11:08]} Kf8 {[%emt 0:11:19]} 42. Rbd2 {[%emt 0:03:41]} Rec8 {[%emt 0:01:01]} 43. a4 {[%emt 0:01:21]} bxa4 {[%emt 0:03:12]} 44. bxa4 {[%emt 0:00:55]} Ra8 {[%emt 0:01:09]} 45. Ra2 {[%emt 0:02:03]} Ra7 {[%emt 0:02:37]} (45... e6 {with more complications.} 46. Ne3 Rc3 47. Rb1 Ra6) 46. Rd4 {[%emt 0:01:04]} Nc6 {[%emt 0:03:38]} (46... e6 {keeps more tension.} 47. Ne3 Rc3 48. Ke2 Ra5) 47. Rdd2 {[%emt 0:00:17]} Rc4 {[%emt 0:04:46]} 48. Nb6 {[%emt 0:01:35]} (48. Rac2 $11 Rc5 49. Rxc5 dxc5 50. Ra2) 48... Rb4 $15 {[%emt 0:04:01]} 49. Rab2 {[%emt 0:02:18] [#]} Rb7 {[%emt 0:01:24]} (49... Ra6 $1 $17 {[%cal Ra6b6]} 50. Nd5 Rbxa4) 50. Rxb4 $11 {[%emt 0:02:55] The position is equal.} Nxb4 {[%emt 0:00:02][%mdl 4096] Endgame KRN-KRN} 51. a5 {[%emt 0:00:22]} Nc6 {[%emt 0:01:00]} 52. Nc4 {[%emt 0:03:04]} Rb4 {[%emt 0:01:24]} 53. Rc2 {[%emt 0:00:26][%cal Oc4d6] [#] Black must now prevent Nxd6!} Nd4 {[%emt 0:01:48]} 54. Rc3 {[%emt 0:00:19]} Nb5 {[%emt 0:03:08]} 55. Rc2 {[%emt 0:00:30]} Nd4 {[%emt 0:00:17]} 56. Rc3 {[%emt 0:00:29]} Nb5 {[%emt 0:00:07] Weighted Error Value: White=0.14 (very precise) /Black=0.11 (very precise)} 1/2-1/2

[Event "ESCC-65 2022"]
[Site "Lublin"]
[Date "2022.07.06"]
[Round "2.14"]
[White "Plesiuk, Jan"]
[Black "Sciupokas, Arunas"]
[Result "0-1"]
[ECO "A40"]
[WhiteElo "1573"]
[BlackElo "1960"]
[Annotator "TA"]
[PlyCount "46"]
[EventDate "2022.07.05"]
[EventType "swiss"]
[EventCountry "POL"]
[SourceTitle "playchess.com"]
[Source "ChessBase"]
[SourceQuality "1"]
[TimeControl "40/5400+30:1800+30"]

{[%evp 9,46,14,25,18,22,-11,0,-25,12,-86,-85,-95,-50,-89,-61,-136,-124,-162,-158,-156,-133,-150,-131,-126,-125,-120,-101,-145,-135,-264,-268,-236,-264,-425,-385,-2355,-1917,-2395,-1332]} 1. d4 {[%emt 0:03:03]} Nc6 {[%emt 0:00:17]} 2. e4 {[%emt 0:02:15]} e5 {[%emt 0:00:31]} 3. c3 {[%emt 0:01:29][%cal Bc2c3,Bc3c4][%mdl 32]} Nf6 {[%emt 0:03:19]} 4. d5 {[%emt 0:01:29]} Ne7 {[%emt 0:00:20]} 5. Bd3 {[%emt 0:02:55]} c6 {[%emt 0:05:18]} 6. c4 $1 {[%emt 0:00:32] B00: Queen's Fianchetto Defence, Nimzowitsch Defence.} Ng6 {[%emt 0:01:15][%cal Ob7b5]} 7. Be3 {[%emt 0:00:52]} Bb4+ {[%emt 0:05:02]} 8. Nd2 {[%emt 0:00:46] [#] The position is equal.} O-O $146 {[%emt 0:03:34][%cal Ob7b5]} (8... b5 $5) ({Predecessor:} 8... d6 9. a3 Ba5 10. f3 O-O 11. Ne2 Bb6 12. Bxb6 Qxb6 13. Qb3 Qe3 14. Bc2 Qg5 {1-0 (47) Schiewer,R-Hubert,P Mecklenburg VP 2000}) 9. f3 {[%emt 0:01:24] [#]} (9. a3 $1 $11 Ba5 10. b4) 9... b5 $1 $17 {[%emt 0:08:00] And now ...bxc4 would win.} 10. a3 {[%emt 0:05:50]} bxc4 {[%emt 0:07:17]} 11. Bxc4 {[%emt 0:00:32]} cxd5 {[%emt 0:05:13]} 12. exd5 {[%emt 0:01:56]} (12. axb4 $15 dxc4 13. Ne2) 12... Ba5 {[%emt 0:03:23]} 13. Nh3 {[%emt 0:07:09]} d6 {[%emt 0:08:21] Strongly threatening ...Bxh3.} 14. Nf2 {[%emt 0:00:56]} Ne7 {[%emt 0:12:43]} 15. Bg5 {[%emt 0:05:03]} Ne8 {[%emt 0:03:11]} 16. Bxe7 {[%emt 0:03:32]} Qxe7 {[%emt 0:00:11]} 17. O-O {[%emt 0:00:18]} Bb7 {[%emt 0:01:15]} 18. b4 {[%emt 0:02:01]} Bb6 {[%emt 0:00:32]} 19. h3 {[%emt 0:06:59]} (19. Rc1 $17 {keeps fighting.}) 19... Nf6 $19 {[%emt 0:06:00]} 20. Nde4 {[%emt 0:00:57]} Nh5 {[%emt 0:00:35] Hoping for ...Rac8.} 21. g3 $2 {[%emt 0:01:11] [#]} (21. Qd2) 21... f5 {[%emt 0:02:10][%cal Bf7f5,Bf5e4,Be4e3][%mdl 32]} 22. g4 $2 {[%emt 0:03:28]} (22. Kh2) 22... fxe4 {[%emt 0:01:41]} 23. gxh5 {[%emt 0:00:21]} e3 {[%emt 0:01:17] Weighted Error Value: White=0.86/Black=0.10 (very precise)} 0-1

[Event "ESCC-65 2022"]
[Site "Lublin"]
[Date "2022.07.06"]
[Round "2.16"]
[White "Severcan, Sedat Sabri"]
[Black "Virtanen, Esko"]
[Result "1-0"]
[ECO "D15"]
[WhiteElo "1849"]
[BlackElo "1709"]
[Annotator "NA RC COMBH"]
[PlyCount "55"]
[EventDate "2022.07.05"]
[EventType "swiss"]
[EventCountry "POL"]
[SourceTitle "playchess.com"]
[Source "ChessBase"]
[SourceQuality "1"]
[TimeControl "40/5400+30:1800+30"]

1. d4 {[%emt 0:00:12]} d5 {[%emt 0:00:06]} 2. c4 {[%emt 0:00:29]} c6 {[%emt 0:00:08]} 3. Nc3 {[%emt 0:00:07]} Nf6 {[%emt 0:00:13]} 4. Nf3 {[%emt 0:00:22]} Bf5 {[%emt 0:00:12]} 5. g3 {[%emt 0:01:47]} e6 {[%emt 0:00:26]} 6. Bg2 {[%emt 0:00:32]} Be7 {[%emt 0:00:15]} 7. Bf4 {[%emt 0:02:43]} dxc4 {[%emt 0:00:59]} 8. Ne5 {[%emt 0:01:05]} Nd5 {[%emt 0:00:45]} 9. Nxc4 {[%emt 0:01:09]} Nxf4 {[%emt 0:00:14]} 10. gxf4 {[%emt 0:00:07]} O-O {[%emt 0:00:30]} 11. O-O {[%emt 0:05:01]} Qc7 {[%emt 0:01:24]} 12. e3 {[%emt 0:02:44]} Rd8 {[%emt 0:03:20]} 13. Qe2 {[%emt 0:01:42]} a5 {[%emt 0:02:37]} 14. Rfe1 {[%emt 0:00:17]} b5 {[%emt 0:08:28]} 15. Ne5 {[%emt 0:10:52]} f6 {[%emt 0:00:59]} 16. Nd3 {[%emt 0:16:10]} Bxd3 {[%emt 0:02:58]} 17. Qxd3 {[%emt 0:00:27]} Ra6 {[%emt 0:00:51]} 18. Qe4 {[%emt 0:07:53]} Qd6 {[%emt 0:02:32]} 19. f5 {[%emt 0:01:40]} b4 {[%emt 0:02:49]} 20. Na4 {[%emt 0:02:42]} exf5 {[%emt 0:02:26]} 21. Qxf5 {[%emt 0:02:05]} Nd7 {[%emt 0:00:13]} 22. Rac1 {[%emt 0:00:53]} g6 {[%emt 0:02:51]} 23. Qd3 {[%emt 0:01:09]} c5 {[%emt 0:00:46]} 24. Qc4+ {[%emt 0:01:19]} Kg7 {[%emt 0:00:17]} 25. dxc5 {[%emt 0:00:29]} Nxc5 {[%emt 0:07:11]} 26. Nxc5 {[%emt 0:03:19]} Rc8 {[%emt 0:01:49]} 27. Ne6+ {[%emt 0:00:54]} Qxe6 {[%emt 0:00:31]} 28. Qxe6 {[%emt 0:00:25]} 1-0

[Event "ESCC-65 2022"]
[Site "Lublin"]
[Date "2022.07.07"]
[Round "3.1"]
[White "Praszak, Michal"]
[Black "Renman, Nils-Gustaf"]
[Result "0-1"]
[ECO "A84"]
[WhiteElo "2048"]
[BlackElo "2311"]
[Annotator "RC"]
[PlyCount "116"]
[EventDate "2022.07.05"]
[EventType "swiss"]
[EventCountry "POL"]
[SourceTitle "playchess.com"]
[Source "ChessBase"]
[SourceQuality "1"]
[TimeControl "40/5400+30:1800+30"]

1. d4 {[%emt 0:00:04]} e6 {[%emt 0:00:07]} 2. c4 {[%emt 0:00:23]} f5 {[%emt 0:00:10]} 3. Nc3 {[%emt 0:00:09]} Nf6 {[%emt 0:00:07]} 4. g3 {[%emt 0:00:13]} c6 {[%emt 0:00:27]} 5. Bg2 {[%emt 0:00:20]} d5 {[%emt 0:00:31]} 6. Qd3 {[%emt 0:00:46]} Bd6 {[%emt 0:00:28]} 7. Nh3 {[%emt 0:00:31]} O-O {[%emt 0:00:49]} 8. Bf4 {[%emt 0:00:23]} Bxf4 {[%emt 0:02:53]} 9. Nxf4 {[%emt 0:00:12]} g5 {[%emt 0:00:25]} 10. Nh3 {[%emt 0:00:16]} h6 {[%emt 0:04:08]} 11. f3 {[%emt 0:00:14]} Na6 {[%emt 0:01:24]} 12. a3 {[%emt 0:00:14]} dxc4 {[%emt 0:05:10]} 13. Qxc4 {[%emt 0:00:10]} Nd5 {[%emt 0:02:10]} 14. Qd3 {[%emt 0:01:57]} c5 {[%emt 0:21:11]} 15. Rd1 {[%emt 0:11:52]} c4 {[%emt 0:07:05]} 16. Qd2 {[%emt 0:00:53]} Nac7 {[%emt 0:01:44]} 17. e4 {[%emt 0:01:29]} Nxc3 {[%emt 0:01:04]} 18. bxc3 {[%emt 0:02:08]} Qe7 {[%emt 0:12:48]} 19. O-O {[%emt 0:02:05]} fxe4 {[%emt 0:15:00]} 20. fxe4 {[%emt 0:00:23]} Rxf1+ {[%emt 0:00:31]} 21. Rxf1 {[%emt 0:00:11]} e5 {[%emt 0:00:25]} 22. d5 {[%emt 0:06:49]} Ne8 {[%emt 0:01:54]} 23. Qe2 {[%emt 0:04:48]} Nd6 {[%emt 0:00:20]} 24. Nf2 {[%emt 0:00:38]} Bd7 {[%emt 0:05:02]} 25. Nd1 {[%emt 0:11:59]} Rf8 {[%emt 0:00:30]} 26. Rxf8+ {[%emt 0:00:33]} Qxf8 {[%emt 0:00:19]} 27. Ne3 {[%emt 0:00:20]} Kg7 {[%emt 0:02:24]} 28. Qb2 {[%emt 0:01:31]} Qc8 {[%emt 0:01:19]} 29. Qb4 {[%emt 0:00:44]} Qc7 {[%emt 0:00:10]} 30. a4 {[%emt 0:08:55]} a5 {[%emt 0:00:14]} 31. Qa3 {[%emt 0:00:38]} Qb6 {[%emt 0:02:01]} 32. Kf2 {[%emt 0:00:05]} Kf7 {[%emt 0:01:40]} 33. Ke2 {[%emt 0:01:21]} h5 {[%emt 0:03:28]} 34. Kd2 {[%emt 0:11:59]} Ke8 {[%emt 0:02:37]} 35. h3 {[%emt 0:03:37]} Kd8 {[%emt 0:00:20]} 36. g4 {[%emt 0:00:25]} hxg4 {[%emt 0:00:21]} 37. hxg4 {[%emt 0:00:24]} Kc7 {[%emt 0:00:16]} 38. Bf3 {[%emt 0:00:34]} Bc8 {[%emt 0:04:38]} 39. Ke2 {[%emt 0:01:27]} Bd7 {[%emt 0:01:40]} 40. Kd2 {[%emt 0:00:00]} Kd8 {[%emt 0:00:00]} 41. Ke2 {[%emt 0:00:36]} Ke8 {[%emt 0:04:59]} 42. Kd2 {[%emt 0:00:46]} Kf7 {[%emt 0:01:19]} 43. Ke2 {[%emt 0:00:23]} Qc7 {[%emt 0:01:19]} 44. Kd2 {[%emt 0:00:29]} b6 {[%emt 0:01:12]} 45. Qa1 {[%emt 0:02:49]} Kg7 {[%emt 0:01:58]} 46. Qh1 {[%emt 0:04:42]} Qd8 {[%emt 0:01:45]} 47. Be2 {[%emt 0:07:02]} Qf6 {[%emt 0:01:55]} 48. Nf5+ {[%emt 0:01:30]} Bxf5 {[%emt 0:00:27]} 49. gxf5 {[%emt 0:00:16]} g4 {[%emt 0:02:20]} 50. Kc2 {[%emt 0:01:31]} Qg5 {[%emt 0:01:16]} 51. Bf1 {[%emt 0:04:28]} Qe3 {[%emt 0:05:33]} 52. f6+ {[%emt 0:01:49]} Kg6 {[%emt 0:02:49]} 53. Bxc4 {[%emt 0:00:49]} Nxc4 {[%emt 0:00:49]} 54. Qh8 {[%emt 0:00:06]} Qf2+ {[%emt 0:00:37]} 55. Kb3 {[%emt 0:00:31]} Nd2+ {[%emt 0:00:08]} 56. Ka3 {[%emt 0:00:37]} Qxf6 {[%emt 0:00:29]} 57. Qg8+ {[%emt 0:00:47]} Kh5 {[%emt 0:00:36]} 58. Qh7+ {[%emt 0:00:47]} Kg5 0-1

[Event "ESCC-65 2022"]
[Site "Lublin"]
[Date "2022.07.07"]
[Round "3.2"]
[White "Petran, Peter"]
[Black "Biro, Sandor"]
[Result "1-0"]
[ECO "A04"]
[WhiteElo "2234"]
[BlackElo "2116"]
[Annotator "RC"]
[PlyCount "69"]
[EventDate "2022.07.05"]
[EventType "swiss"]
[EventCountry "POL"]
[SourceTitle "playchess.com"]
[Source "ChessBase"]
[SourceQuality "1"]
[TimeControl "40/5400+30:1800+30"]

1. Nf3 {[%emt 0:00:04]} Nc6 {[%emt 0:00:27]} 2. d4 {[%emt 0:00:57]} d5 {[%emt 0:00:07]} 3. g3 {[%emt 0:01:04]} Bg4 {[%emt 0:00:40]} 4. Bg2 {[%emt 0:00:08]} e6 {[%emt 0:01:10]} 5. O-O {[%emt 0:00:30]} Nge7 {[%emt 0:05:51]} 6. Nbd2 {[%emt 0:00:25]} h5 {[%emt 0:00:48]} 7. h3 {[%emt 0:02:56]} Bf5 {[%emt 0:00:48]} 8. c3 {[%emt 0:00:11]} a5 {[%emt 0:03:17]} 9. Re1 {[%emt 0:01:00]} Ng6 {[%emt 0:24:01]} 10. e4 {[%emt 0:00:38]} dxe4 {[%emt 0:02:39]} 11. Nxe4 {[%emt 0:00:09]} Bxe4 {[%emt 0:03:22]} 12. Rxe4 {[%emt 0:00:07]} Be7 {[%emt 0:00:45]} 13. h4 {[%emt 0:03:49]} a4 {[%emt 0:24:01]} 14. Qe2 {[%emt 0:00:57]} Qd7 {[%emt 0:15:52]} 15. Bh3 {[%emt 0:01:16]} Nd8 {[%emt 0:04:20]} 16. Bg5 {[%emt 0:06:16]} Ra5 {[%emt 0:08:09]} 17. Re1 {[%emt 0:06:16]} O-O {[%emt 0:02:11]} 18. Bd2 {[%emt 0:03:40]} Rb5 {[%emt 0:00:30]} 19. Bc1 {[%emt 0:01:53]} Rb6 {[%emt 0:00:27]} 20. Ng5 {[%emt 0:04:27]} Bxg5 {[%emt 0:00:22]} 21. Bxg5 {[%emt 0:00:08]} Ne7 {[%emt 0:00:24]} 22. Bxe7 {[%emt 0:11:30]} Qxe7 {[%emt 0:00:06]} 23. d5 {[%emt 0:00:05]} Qc5 {[%emt 0:00:12]} 24. dxe6 {[%emt 0:01:44]} fxe6 {[%emt 0:00:29]} 25. Re5 {[%emt 0:00:44]} Qd6 {[%emt 0:01:20]} 26. Rxh5 {[%emt 0:00:26]} Rf6 {[%emt 0:00:39]} 27. Rd1 {[%emt 0:05:18]} Qf8 {[%emt 0:00:29]} 28. Ra5 {[%emt 0:00:25]} Nc6 {[%emt 0:00:31]} 29. Rxa4 {[%emt 0:00:13]} Qc5 {[%emt 0:00:11]} 30. Bxe6+ {[%emt 0:07:14]} Kh7 {[%emt 0:00:06]} 31. Rd5 {[%emt 0:01:04]} Qe7 {[%emt 0:01:03]} 32. Rh5+ {[%emt 0:06:22]} Rh6 {[%emt 0:00:09]} 33. Rxh6+ {[%emt 0:00:34]} Kxh6 {[%emt 0:00:50]} 34. Re4 {[%emt 0:00:08]} Qf6 {[%emt 0:00:41]} 35. Bb3 1-0